fUST/lending_fUST_20251205
["ID","MTS","AMOUNT","RATE_DAILY","PERIOD"]
[396257810,1764894731873,-500.0,0.00012368,2]
[396257811,1764894731905,-500.0,0.00012368,2]
[396257812,1764894731936,-500.0,0.00012368,2]
[396257813,1764894731966,-500.0,0.00012368,2]
[396257814,1764894731997,-500.0,0.00012368,2]
[396257815,1764894732027,-500.0,0.00012368,2]
[396257816,1764894732055,-500.0,0.00012368,2]
[396257817,1764894732084,-500.0,0.00012368,2]
[396257818,1764894733351,153.27,8.2e-05,2]
[396257819,1764894734350,153.27,8.4e-05,2]
[396257820,1764894734402,153.27,8.6e-05,2]
[396257821,1764894734455,153.27,8.9e-05,2]
[396257822,1764894734501,153.27,9.1e-05,2]
[396257823,1764894734731,153.27,9.3e-05,2]
[396257824,1764894735115,153.27,9.5e-05,2]
[396257825,1764894735416,153.27,9.8e-05,2]
[396257826,1764894782308,152.49,1e-05,2]
[396257827,1764894782586,152.49,1.4e-05,2]
[396257828,1764894782862,152.49,1.9e-05,2]
[396257829,1764894783216,152.49,2.3e-05,2]
[396257830,1764894783536,152.49,2.8e-05,2]
[396257831,1764894783799,152.49,3.2e-05,2]
[396257832,1764894784192,152.49,3.6e-05,2]
[396257833,1764894784550,152.49,4.1e-05,2]
[396257834,1764894784837,152.49,4.5e-05,2]
[396257835,1764894785165,152.49,4.9e-05,2]
[396257836,1764894785499,152.49,5.4e-05,2]
[396257837,1764894785891,152.49,5.8e-05,2]
[396257838,1764894786287,152.49,6.3e-05,2]
[396257839,1764894786436,152.49,6.7e-05,2]
[396257840,1764894786785,152.49,7.1e-05,2]
[396257841,1764894787174,152.49,7.6e-05,2]
[396257842,1764894787645,152.49,8e-05,2]
[396257843,1764894787912,152.49,8.4e-05,2]
[396257844,1764894788254,152.49,8.9e-05,2]
[396257845,1764894788558,152.49,9.3e-05,2]
[396257846,1764894789877,152.43,1e-05,2]
[396257847,1764894948803,565.49259049,0.0001175,2]
[396257849,1764895103916,436.09818367,0.0001175,2]
[396257850,1764895133855,305.27105238,0.0001175,2]
[396257851,1764895144913,206.048837,0.00011563,2]
[396257852,1764895313846,-340.974,0.00012025,2]
[396257853,1764895313869,-184.48054502,0.00012037,2]
[396257854,1764895491903,-64.51945498,0.00012037,2]
[396257855,1764895491927,-147.81932906,0.00012037,2]
[396257856,1764895822474,-170.31234047,0.00012097,2]
[396257857,1764895822498,-195.74783503,0.00012097,2]
[396257867,1764895832263,-53.25216497,0.00012097,2]
[396257868,1764895832273,-658.12401541,0.00012157,2]
[396257872,1764895838256,-505.09139429,0.00012157,2]
[396257874,1764895838266,-3116.30028251,0.0001217,2]
[396257876,1764895838278,-586.89717923,0.0001217,2]
[396257878,1764895838290,-307.8364998,0.0001217,2]
[396257880,1764895838301,-6852.44163661,0.0001217,2]
[396257881,1764895838312,-905.78757059,0.0001217,2]
[396257882,1764895838325,-2286.42699058,0.0001217,2]
[396257883,1764895838364,-875944.30984068,0.0001217,2]
[396257884,1764895838374,-154.0,0.000122,2]
[396257885,1764895838384,-300.0,0.00012268,2]
[396257886,1764895838393,-500.0,0.00012269,2]
[396257887,1764895838402,-500.0,0.00012269,2]
[396257888,1764895838411,-500.0,0.00012269,2]
[396257889,1764895838421,-500.0,0.00012269,2]
[396257890,1764895838431,-500.0,0.00012269,2]
[396257891,1764895838440,-500.0,0.00012269,2]
[396257892,1764895838449,-500.0,0.00012269,2]
[396257893,1764895838458,-500.0,0.00012269,2]
[396257894,1764895838467,-500.0,0.00012269,2]
[396257895,1764895838476,-500.0,0.00012269,2]
[396257896,1764895838485,-500.0,0.00012269,2]
[396257897,1764895838495,-385.55022271,0.00012269,2]
[396257898,1764895838503,-1698.18539259,0.00012269,2]
[396257899,1764895838513,-200.35,0.00012269,2]
[396257900,1764895838522,-50000.0,0.00012269,2]
[396257901,1764895838531,-500.0,0.00012269,2]
[396257902,1764895838541,-500.0,0.00012269,2]
[396257903,1764895838550,-500.0,0.00012269,2]
[396257905,1764895838560,-234.01476739,0.00012269,2]
[396257907,1764895838569,-549.74875345,0.00012269,2]
[396257910,1764895838579,-500.0,0.00012269,2]
[396257912,1764895838589,-500.0,0.00012269,2]
[396257914,1764895838598,-638.56522677,0.00012269,2]
[396257916,1764895838607,-500.0,0.00012269,2]
[396257918,1764895838616,-500.0,0.00012269,2]
[396257920,1764895838627,-500.0,0.00012269,2]
[396257922,1764895838635,-500.0,0.00012269,2]
[396257924,1764895838646,-291.3126767,0.00012269,2]
[396257925,1764895838654,-311.77919076,0.00012269,2]
[396257926,1764895838664,-500.0,0.00012269,2]
[396257927,1764895838673,-648.73027943,0.00012269,2]
[396257928,1764895838682,-500.0,0.00012269,2]
[396257929,1764895838691,-500.0,0.00012269,2]
[396257930,1764895838700,-500.0,0.00012269,2]
[396257931,1764895838710,-500.0,0.00012269,2]
[396257932,1764895838720,-500.0,0.00012269,2]
[396257933,1764895838730,-1000.0,0.00012369,2]
[396257935,1764895838739,-1000.0,0.00012369,2]
[396257937,1764895838749,-1000.0,0.00012369,2]
[396257939,1764895838759,-1000.0,0.00012369,2]
[396257940,1764895838768,-1000.0,0.00012369,2]
[396257941,1764895838778,-1000.0,0.00012369,2]
[396257942,1764895838788,-1002.4531689,0.00012369,2]
[396257944,1764895838798,-200.3593794,0.00012543,2]
[396257946,1764895838808,-300.0,0.00012614,2]
[396257948,1764895838818,-300.0,0.00012614,2]
[396257950,1764895838829,-300.0,0.00012614,2]
[396257952,1764895838838,-300.0,0.00012614,2]
[396257954,1764895838848,-300.0,0.00012614,2]
[396257956,1764895838858,-300.0,0.00012614,2]
[396257958,1764895838868,-300.0,0.00012614,2]
[396257960,1764895838879,-300.0,0.00012614,2]
[396257962,1764895838889,-300.0,0.00012614,2]
[396257965,1764895838903,-300.0,0.00012614,2]
[396257967,1764895838913,-300.0,0.00012614,2]
[396257969,1764895838923,-300.0,0.00012614,2]
[396257971,1764895838935,-300.0,0.00012614,2]
[396257973,1764895838945,-300.0,0.00012614,2]
[396257975,1764895838955,-300.0,0.00012614,2]
[396257977,1764895838969,-600.0,0.00012614,2]
[396257979,1764895838986,-500.0,0.00013273,2]
[396257981,1764895838997,-500.0,0.00013273,2]
[396257983,1764895839006,-500.0,0.00013273,2]
[396257985,1764895839016,-500.0,0.00013273,2]
[396257987,1764895839027,-500.0,0.00013273,2]
[396257989,1764895839037,-500.0,0.00013273,2]
[396257991,1764895839047,-500.0,0.00013273,2]
[396257993,1764895839056,-500.0,0.00013273,2]
[396257995,1764895839067,-500.0,0.00013273,2]
[396257997,1764895839078,-500.0,0.00013273,2]
[396257999,1764895839088,-500.0,0.00013273,2]
[396258001,1764895839098,-500.0,0.00013273,2]
[396258003,1764895839108,-500.0,0.00013273,2]
[396258005,1764895839118,-500.0,0.00013273,2]
[396258007,1764895839128,-500.0,0.00013273,2]
[396258009,1764895839138,-500.0,0.00013273,2]
[396258011,1764895839147,-500.0,0.00013273,2]
[396258013,1764895839157,-420.0,0.00013464,2]
[396258015,1764895839167,-300.0,0.00013673,2]
[396258017,1764895839177,-500.0,0.00013698,2]
[396258019,1764895839186,-500.0,0.00013698,2]
[396258020,1764895839195,-500.0,0.00013698,2]
[396258022,1764895839205,-500.0,0.00013698,2]
[396258024,1764895839215,-475.24,0.00013698,2]
[396258026,1764895839224,-500.0,0.00013698,2]
[396258028,1764895839235,-444.04984892,0.00013698,2]
[396258030,1764895839244,-500.0,0.00013698,2]
[396258032,1764895839253,-500.0,0.00013698,2]
[396258034,1764895839262,-500.0,0.00013698,2]
[396258036,1764895839272,-500.0,0.00013698,2]
[396258038,1764895839282,-500.0,0.00013698,2]
[396258040,1764895839291,-500.0,0.00013698,2]
[396258042,1764895839301,-500.0,0.00013698,2]
[396258044,1764895839310,-500.0,0.00013698,2]
[396258046,1764895839320,-500.0,0.00013698,2]
[396258048,1764895839329,-500.0,0.00013698,2]
[396258050,1764895839339,-500.0,0.00013698,2]
[396258052,1764895839349,-500.0,0.00013698,2]
[396258054,1764895839358,-500.0,0.00013698,2]
[396258056,1764895839368,-500.0,0.00013698,2]
[396258058,1764895839379,-500.0,0.00013698,2]
[396258060,1764895839388,-263.84,0.00013698,2]
[396258062,1764895839398,-500.0,0.00013698,2]
[396258064,1764895839408,-500.0,0.00013698,2]
[396258065,1764895839419,-500.0,0.00013698,2]
[396258067,1764895839428,-500.0,0.00013698,2]
[396258068,1764895839438,-500.0,0.00013698,2]
[396258069,1764895839449,-500.0,0.00013698,2]
[396258070,1764895839459,-541.4,0.00013698,2]
[396258071,1764895839469,-311.421502,0.00013699,2]
[396258073,1764895839479,-537.299632,0.00013699,2]
[396258075,1764895839488,-500.0,0.00013699,2]
[396258077,1764895839497,-500.45440721,0.00013699,2]
[396258079,1764895839507,-183.89422851,0.00013699,2]
[396258081,1764895839517,-205.10530702,0.00013699,2]
[396258083,1764895839526,-500.0,0.00013699,2]
[396258084,1764895839535,-500.0,0.00013699,2]
[396258086,1764895839546,-500.36722663,0.00013699,2]
[396258088,1764895839555,-500.0,0.00013699,2]
[396258090,1764895839565,-500.0,0.00013699,2]
[396258092,1764895839575,-500.0,0.00013699,2]
[396258094,1764895839584,-500.0,0.00013699,2]
[396258096,1764895839593,-500.0,0.00013699,2]
[396258098,1764895839602,-184.57621683,0.00013699,2]
[396258099,1764895839612,-500.0,0.00013699,2]
[396258100,1764895839621,-500.0,0.00013699,2]
[396258101,1764895839630,-500.0,0.00013699,2]
[396258102,1764895839639,-500.0,0.00013699,2]
[396258103,1764895839648,-500.0,0.00013699,2]
[396258104,1764895839657,-500.0,0.00013699,2]
[396258105,1764895839667,-500.0,0.00013699,2]
[396258106,1764895839676,-500.0,0.00013699,2]
[396258107,1764895839686,-500.0,0.00013699,2]
[396258108,1764895839695,-500.0,0.00013699,2]
[396258109,1764895839705,-500.0,0.00013699,2]
[396258110,1764895839714,-500.0,0.00013699,2]
[396258111,1764895839724,-501.1017389,0.00013699,2]
[396258112,1764895839735,-500.0,0.00013699,2]
[396258113,1764895839745,-500.0,0.00013699,2]
[396258114,1764895839757,-605.38708566,0.00013699,2]
[396258115,1764895839766,-500.0,0.00013699,2]
[396258116,1764895839776,-500.0,0.00013699,2]
[396258117,1764895839784,-500.0,0.00013699,2]
[396258118,1764895839795,-500.0,0.00013699,2]
[396258119,1764895839804,-500.0,0.00013699,2]
[396258120,1764895839814,-158.36621423,0.00013699,2]
[396258121,1764895839824,-500.0,0.00013699,2]
[396258122,1764895839833,-500.0,0.00013699,2]
[396258123,1764895839843,-500.0,0.00013699,2]
[396258124,1764895839851,-406.82654529,0.00013699,2]
[396258125,1764895839861,-500.0,0.00013699,2]
[396258126,1764895839870,-500.0,0.00013699,2]
[396258128,1764895839880,-500.0,0.00013699,2]
[396258130,1764895839890,-500.0,0.00013699,2]
[396258131,1764895839903,-500.0,0.00013699,2]
[396258132,1764895839912,-500.0,0.00013699,2]
[396258133,1764895839922,-500.0,0.00013699,2]
[396258134,1764895839932,-175.29872286,0.00013699,2]
[396258136,1764895839941,-500.0,0.00013699,2]
[396258139,1764895839950,-500.0,0.00013699,2]
[396258141,1764895839959,-306.68319155,0.00013699,2]
[396258143,1764895839971,-500.37818065,0.00013699,2]
[396258145,1764895839980,-500.0,0.00013699,2]
[396258147,1764895839990,-500.0,0.00013699,2]
[396258149,1764895839999,-500.0,0.00013699,2]
[396258151,1764895840007,-500.0,0.00013699,2]
[396258153,1764895840016,-496.19505642,0.00013699,2]
[396258155,1764895840023,-275.87016897,0.00013699,2]
[396258157,1764895840033,-500.0,0.00013699,2]
[396258159,1764895840042,-500.0,0.00013699,2]
[396258161,1764895840051,-500.0,0.00013699,2]
[396258163,1764895840061,-500.0,0.00013699,2]
[396258165,1764895840070,-500.0,0.00013699,2]
[396258167,1764895840079,-632.31082806,0.00013699,2]
[396258169,1764895840089,-525.92730035,0.00013821,2]
[396258170,1764895840098,-500.0,0.00013821,2]
[396258172,1764895840108,-1000.0,0.00013821,2]
[396258173,1764895840118,-1000.0,0.00013821,2]
[396258175,1764895840128,-500.0,0.00013821,2]
[396258176,1764895840137,-507.98101226,0.00013821,2]
[396258178,1764895840147,-1000.0,0.00013821,2]
[396258179,1764895840156,-500.0,0.00013821,2]
[396258181,1764895840166,-500.0,0.00013821,2]
[396258182,1764895840176,-500.0,0.00013821,2]
[396258184,1764895840187,-502.57208735,0.00013821,2]
[396258185,1764895840196,-500.0,0.00013821,2]
[396258186,1764895840206,-1000.0,0.00013821,2]
[396258187,1764895840215,-500.0,0.00013821,2]
[396258188,1764895840225,-488.74629729,0.00013821,2]
[396258189,1764895840235,-1000.0,0.00013821,2]
[396258190,1764895840245,-720.0,0.00013876,2]
[396258191,1764895840255,-200.96856175,0.00014097,2]
[396258192,1764895840266,-300.0,0.00014221,2]
[396258193,1764895840277,-500.0,0.00014247,2]
[396258194,1764895840288,-1001.19184495,0.00014247,2]
[396258195,1764895840299,-500.0,0.00014247,2]
[396258196,1764895840311,-1000.0,0.00014247,2]
[396258197,1764895840321,-1000.0,0.00014247,2]
[396258198,1764895840332,-500.0,0.00014247,2]
[396258199,1764895840344,-767.41109129,0.00014247,2]
[396258200,1764895840356,-1000.0,0.00014247,2]
[396258201,1764895840367,-701.11531663,0.00014247,2]
[396258202,1764895840378,-500.0,0.00014247,2]
[396258203,1764895840389,-1000.0,0.00014247,2]
[396258204,1764895840400,-501.41988288,0.00014247,2]
[396258205,1764895840411,-1000.0,0.00014247,2]
[396258206,1764895840420,-1000.0,0.00014247,2]
[396258207,1764895840430,-200.6570292,0.00014247,2]
[396258208,1764895840440,-500.30187064,0.00014247,2]
[396258209,1764895840451,-1000.0,0.00014247,2]
[396258210,1764895840462,-1000.0,0.00014247,2]
[396258211,1764895840473,-1000.0,0.00014247,2]
[396258212,1764895840484,-1000.0,0.00014247,2]
[396258213,1764895840495,-670.00848032,0.00014247,2]
[396258214,1764895840505,-1000.0,0.00014247,2]
[396258215,1764895840515,-1000.0,0.00014247,2]
[396258216,1764895840525,-1001.35575725,0.00014247,2]
[396258217,1764895840535,-1000.0,0.00014247,2]
[396258218,1764895840545,-500.0,0.00014247,2]
[396258219,1764895840555,-500.0,0.00014247,2]
[396258220,1764895840565,-500.0,0.00014247,2]
[396258221,1764895840575,-500.0,0.00014247,2]
[396258222,1764895840585,-758.36410523,0.00014247,2]
[396258223,1764895840594,-500.0,0.00014247,2]
[396258224,1764895840603,-1000.0,0.00014247,2]
[396258226,1764895840612,-208.33228679,0.00014247,2]
[396258227,1764895840622,-500.0,0.00014247,2]
[396258228,1764895840632,-1000.0,0.00014247,2]
[396258229,1764895840641,-500.0,0.00014247,2]
[396258230,1764895840654,-1000.0,0.00014247,2]
[396258231,1764895840664,-337.95372165,0.00014247,2]
[396258232,1764895840674,-1000.0,0.00014247,2]
[396258233,1764895840685,-500.93547823,0.00014247,2]
[396258234,1764895840696,-1500.0,0.00014368,2]
[396258235,1764895840707,-803.62640696,0.00014368,2]
[396258236,1764895840717,-1000.0,0.00014368,2]
[396258237,1764895840728,-200.0,0.00014589,2]
[396258238,1764895840738,-200.0,0.00014589,2]
[396258239,1764895840749,-315.52359915,0.00014589,2]
[396258240,1764895840760,-100000.0,0.0001459,2]
[396258241,1764895840770,-154.0,0.000147,2]
[396258242,1764895840781,-403.0,0.00014776,2]
[396258243,1764895840791,-500.0,0.00014795,2]
[396258244,1764895840802,-198.0,0.00014843,2]
[396258245,1764895840814,-198.0,0.0001485,2]
[396258246,1764895840824,-198.0,0.00014875,2]
[396258247,1764895840835,-198.0,0.00014891,2]
[396258248,1764895840845,-198.0,0.00014894,2]
[396258249,1764895840856,-198.0,0.00014894,2]
[396258250,1764895840867,-150.0,0.00014916,2]
[396258251,1764895840878,-150.0,0.00014916,2]
[396258252,1764895840889,-200.0,0.00014916,2]
[396258253,1764895840903,-500.0,0.00014916,2]
[396258254,1764895840914,-198.0,0.00014931,2]
[396258255,1764895840926,-198.0,0.00014988,2]
[396258256,1764895840938,-198.0,0.00015015,2]
[396258257,1764895840949,-198.0,0.00015042,2]
[396258258,1764895840959,-198.0,0.00015045,2]
[396258259,1764895840971,-198.0,0.00015105,2]
[396258260,1764895840982,-198.0,0.00015178,2]
[396258261,1764895840992,-198.0,0.00015205,2]
[396258262,1764895841003,-864.0,0.00015264,2]
[396258263,1764895841012,-500.0,0.00015271,2]
[396258264,1764895841022,-500.0,0.00015271,2]
[396258265,1764895841032,-500.0,0.00015271,2]
[396258266,1764895841040,-500.0,0.00015271,2]
[396258267,1764895841050,-2487.15318209,0.00015271,2]
[396258268,1764895841058,-500.0,0.00015271,2]
[396258269,1764895841068,-516.72522981,0.00015271,2]
[396258270,1764895841077,-198.0,0.00015322,2]
[396258271,1764895841088,-198.0,0.00015345,2]
[396258272,1764895841097,-198.0,0.00015377,2]
[396258273,1764895841108,-198.0,0.00015604,2]
[396258274,1764895841118,-232.49426894,0.00015607,2]
[396258275,1764895841128,-198.0,0.00015612,2]
[396258276,1764895841141,-198.0,0.0001562,2]
[396258277,1764895841152,-201.34229844,0.00015701,2]
[396258278,1764895841163,-198.0,0.00015733,2]
[396258279,1764895841173,-154.0,0.000158,2]
[396258280,1764895841183,-2579.17784983,0.00015819,2]
[396258281,1764895841193,-198.0,0.00015836,2]
[396258282,1764895841202,-198.0,0.00016055,2]
[396258283,1764895841212,-198.0,0.00016091,2]
[396258284,1764895841223,-231.62478303,0.00016097,2]
[396258285,1764895841519,-198.0,0.00016142,2]
[396258286,1764895841531,-2154.0,0.00016169,2]
[396258287,1764895841542,-631.0,0.00016169,2]
[396258288,1764895841552,-1358.0,0.00016169,2]
[396258289,1764895841563,-211.371,0.00016169,2]
[396258290,1764895841574,-198.0,0.0001629,2]
[396258291,1764895841586,-2674.60743027,0.00016367,2]
[396258292,1764895841598,-300.0,0.00016438,2]
[396258293,1764895841610,-300.0,0.00016438,2]
[396258294,1764895841623,-400.0,0.00016438,2]
[396258295,1764895841638,-300.0,0.00016438,2]
[396258296,1764895841660,-300.0,0.00016438,2]
[396258297,1764895841679,-300.0,0.00016438,2]
[396258298,1764895841689,-300.0,0.00016438,2]
[396258299,1764895841703,-300.0,0.00016438,2]
[396258300,1764895841715,-399.12955785,0.0001656,2]
[396258301,1764895841729,-1000.0,0.0001679,2]
[396258302,1764895841740,-154.0,0.000169,2]
[396258303,1764895841751,-2773.56790519,0.00016915,2]
[396258304,1764895841764,-2876.18991768,0.00017463,2]
[396258305,1764895841777,-362.41613719,0.00017507,2]
[396258306,1764895841787,-154.0,0.000179,2]
[396258307,1764895841798,-2982.60894464,0.00018011,2]
[396258308,1764895841808,-262.28100432,0.00018097,2]
[396258309,1764895841819,-184.87072482,0.00018201,2]
[396258310,1764895841829,-1000.0,0.00018469,2]
[396258311,1764895841841,-244.0,0.00018469,2]
[396258312,1764895841852,-2154.0,0.00019169,2]
[396258313,1764895841864,-320.1,0.000192,2]
[396258314,1764895841875,-289.97,0.000192,2]
[396258315,1764895841886,-314.75,0.000192,2]
[396258316,1764895841899,-850.75,0.000192,2]
[396258317,1764895841910,-500.0,0.00019726,2]
[396258318,1764895841920,-500.0,0.00019726,2]
[396258319,1764895841929,-500.0,0.00019726,2]
[396258320,1764895841942,-500.0,0.00019726,2]
[396258321,1764895841952,-500.0,0.00019726,2]
[396258322,1764895841963,-500.0,0.00019726,2]
[396258323,1764895841975,-500.0,0.00019726,2]
[396258324,1764895841987,-500.0,0.00019726,2]
[396258325,1764895841998,-500.0,0.00019726,2]
[396258326,1764895842009,-500.0,0.00019726,2]
[396258327,1764895842021,-647.80988049,0.00019726,2]
[396258328,1764895842032,-156.0,0.000198,2]
[396258329,1764895842044,-156.87774471,0.000198,2]
[396258330,1764895842056,-292.9372256,0.00020097,2]
[396258331,1764895842069,-537.299632,0.00020187,2]
[396258332,1764895842081,-1000.0,0.00020316,10]
[396258333,1764895842098,-492.0,0.00020316,10]
[396258334,1764895842109,-154.0,0.00021,3]
[396258335,1764895842122,-182.2171121,0.000211,2]
[396258336,1764895842132,-155.0,0.00021315,4]
[396258337,1764895842143,-150.5,0.0002189,120]
[396258338,1764895842153,-150.5,0.000219,120]
[396258339,1764895842165,-150.5,0.0002191,120]
[396258340,1764895842176,-500.0,0.00021918,120]
[396258341,1764895842189,-200.0,0.00021999,2]
[396258342,1764895842200,-200.0,0.00021999,2]
[396258343,1764895842212,-50000.0,0.00022,45]
[396258344,1764895842223,-90040.91,0.00022,2]
[396258345,1764895842234,-323.59344689,0.00022097,2]
[396258346,1764895842244,-2154.0,0.00022169,2]
[396258347,1764895842255,-1000.0,0.00022347,10]
[396258348,1764895842268,-791.0,0.00022347,10]
[396258349,1764895842282,-625.6927,0.00022726,2]
[396258350,1764895842293,-151.0,0.000229,7]
[396258351,1764895842304,-151.0,0.000232,9]
[396258352,1764895842315,-151.0,0.000235,10]
[396258353,1764895842325,-850.75,0.000235,2]
[396258354,1764895842335,-151.0,0.000238,6]
[396258355,1764895842346,-354.24966817,0.00024097,2]
[396258356,1764895842359,-151.0,0.000241,10]
[396258357,1764895842371,-314.75,0.000241,14]
[396258358,1764895842383,-151.0,0.000244,5]
[396258359,1764895842396,-1000.0,0.00024582,10]
[396258360,1764895842406,-1000.0,0.00024582,10]
[396258361,1764895842417,-500.0,0.00024658,120]
[396258362,1764895842427,-150.0,0.00024658,2]
[396258363,1764895842438,-380.0,0.00024658,2]
[396258364,1764895842450,-151.0,0.000247,6]
[396258365,1764895842461,-289.97,0.000247,7]
[396258366,1764895842471,-5594.55521478,0.000247,2]
[396258367,1764895842482,-200.0,0.00024799,2]
[396258368,1764895842492,-152.017595,0.000248,7]
[396258369,1764895842502,-151.0,0.000248,7]
[396258370,1764895842512,-151.0,0.000248,7]
[396258371,1764895842523,-151.0,0.000248,7]
[396258372,1764895842535,-159.788754,0.000248,7]
[396258373,1764895842545,-159.788754,0.000248,7]
[396258374,1764895842556,-159.788754,0.000248,7]
[396258375,1764895842567,-159.788754,0.000248,7]
[396258376,1764895842578,-151.0,0.000248,7]
[396258377,1764895842588,-151.0,0.000248,7]
[396258378,1764895842599,-151.0,0.000248,7]
[396258379,1764895842609,-151.0,0.000248,7]
[396258380,1764895842620,-151.0,0.000248,7]
[396258381,1764895842630,-151.0,0.000248,7]
[396258382,1764895842641,-151.0,0.000248,7]
[396258383,1764895842652,-189.82391,0.000248,7]
[396258384,1764895842663,-189.82391,0.000248,7]
[396258385,1764895842673,-189.82391,0.000248,7]
[396258386,1764895842684,-189.82391,0.000248,7]
[396258387,1764895842695,-151.0,0.000248,7]
[396258388,1764895842705,-151.0,0.000248,7]
[396258389,1764895842717,-151.0,0.000248,7]
[396258390,1764895842730,-151.0,0.000248,7]
[396258391,1764895842741,-151.0,0.000248,7]
[396258392,1764895842751,-151.0,0.000248,7]
[396258393,1764895842762,-151.0,0.000248,7]
[396258394,1764895842772,-287.176775,0.000248,7]
[396258395,1764895842783,-287.176775,0.000248,7]
[396258396,1764895842793,-287.176775,0.000248,7]
[396258397,1764895842805,-287.176775,0.000248,7]
[396258398,1764895842817,-41481.8084328,0.000248,2]
[396258399,1764895842829,-154.0,0.000248,5]
[396258400,1764895842840,-154.0,0.000248,4]
[396258401,1764895842852,-151.0,0.000248,7]
[396258402,1764895842862,-6164.894384,0.000248,7]
[396258403,1764895842872,-6164.894384,0.000248,7]
[396258404,1764895842883,-6164.894384,0.000248,7]
[396258405,1764895842898,-6164.894384,0.000248,7]
[396258406,1764895842913,-151.0,0.000248,7]
[396258407,1764895842923,-151.0,0.000248,7]
[396258408,1764895842935,-151.0,0.000248,7]
[396258409,1764895842947,-151.0,0.000248,7]
[396258410,1764895842958,-151.0,0.000248,7]
[396258411,1764895842971,-151.0,0.000248,7]
[396258412,1764895842988,-151.0,0.000248,7]
[396258413,1764895843000,-202.393106,0.000248,7]
[396258414,1764895843013,-151.0,0.000248,7]
[396258415,1764895843023,-151.0,0.000248,7]
[396258416,1764895843035,-12515.0,0.00025,14]
[396258417,1764895843046,-47000.0,0.00025,14]
[396258418,1764895843058,-3069.28400699,0.00025,14]
[396258419,1764895843071,-8000.0,0.00025,2]
[396258420,1764895843082,-2071.19756,0.00025017,15]
[396258421,1764895843093,-826.0,0.00025017,10]
[396258422,1764895843104,-182.2171121,0.00025168,110]
[396258423,1764895843115,-90040.91,0.000252,2]
[396258424,1764895843126,-250.0,0.00025205,2]
[396258425,1764895843137,-320.1,0.000253,7]
[396258426,1764895843148,-166.32803068,0.0002548,5]
[396258427,1764895843159,-350.0,0.00025753,2]
[396258429,1764895843170,-500.0,0.00025956,7]
[396258431,1764895843181,-165.0,0.00026,7]
[396258432,1764895843192,-5594.55521478,0.00026027,2]
[396258433,1764895843205,-384.90588945,0.00026097,2]
[396258434,1764895843219,-450.0,0.00026301,2]
[396258435,1764895843230,-850.75,0.000266,2]
[396258436,1764895843242,-537.299632,0.00026676,2]
[396258437,1764895843253,-550.0,0.00026849,2]
[396258438,1764895843263,-1000.0,0.0002704,30]
[396258439,1764895843274,-1000.0,0.0002704,30]
[396258440,1764895843285,-579.0,0.0002704,30]
[396258441,1764895843296,-500.0,0.00027052,7]
[396258442,1764895843308,-490.27449144,0.00027065,7]
[396258443,1764895843318,-314.75,0.000271,14]